fUSD/lending_fUSD_20260217
["ID","MTS","AMOUNT","RATE_DAILY","PERIOD"]
[405803516,1771326634143,-500.0,9.863e-05,2]
[405803517,1771326634152,-174.44086209,0.0001,2]
[405803518,1771326634162,-174.44086209,0.0001,2]
[405803519,1771326634171,-151.0,0.0001,2]
[405803520,1771326634180,-151.0,0.0001,2]
[405803521,1771326634192,-151.0,0.0001,2]
[405803522,1771326634202,-151.0,0.0001,2]
[405803523,1771326634211,-151.0,0.0001,2]
[405803524,1771326634221,-151.0,0.0001,2]
[405803525,1771326634230,-151.0,0.0001,2]
[405803526,1771326634240,-151.0,0.0001,2]
[405803527,1771326634249,-151.0,0.0001,2]
[405803528,1771326634259,-151.0,0.0001,2]
[405803529,1771326634269,-151.0,0.0001,2]
[405803530,1771326634278,-151.0,0.0001,2]
[405803531,1771326634288,-151.0,0.0001,2]
[405803532,1771326634298,-151.0,0.0001,2]
[405803533,1771326634307,-151.0,0.0001,2]
[405803534,1771326634318,-151.0,0.0001,2]
[405803535,1771326634328,-151.0,0.0001,2]
[405803536,1771326634338,-151.0,0.0001,2]
[405803537,1771326634348,-151.0,0.0001,2]
[405803538,1771326634358,-151.0,0.0001,2]
[405803539,1771326634368,-500.0,0.0001,2]
[405803540,1771326634378,-274.0,0.0001,2]
[405803541,1771326634387,-274.0,0.0001,2]
[405803542,1771326634397,-276.85061866,0.0001,2]
[405803543,1771326634407,-250.0,0.00010038,2]
[405803544,1771326634417,-192.01,0.00010046,2]
[405803545,1771326634426,-898.32890406,0.00010088,2]
[405803546,1771326634436,-736.0,0.0001011,2]
[405803547,1771326634445,-3292.0,0.0001011,2]
[405803548,1771326634455,-500.0,0.00010137,2]
[405803549,1771326634464,-1000.0,0.00010274,2]
[405803550,1771326634474,-500.0,0.00010411,2]
[405803551,1771326634484,-41610.29801947,0.00010456,2]
[405803552,1771326634494,-192.01,0.00010502,2]
[405803553,1771326634503,-500.0,0.00010548,2]
[405803554,1771326634512,-500.0,0.00010685,2]
[405803555,1771326634522,-164.61380668,0.00010779,2]
[405803556,1771326634532,-500.0,0.00010779,2]
[405803557,1771326634541,-500.0,0.00010779,2]
[405803558,1771326634550,-160.37289206,0.00010779,2]
[405803559,1771326634560,-500.0,0.00010779,2]
[405803560,1771326634569,-500.81972658,0.00010779,2]
[405803561,1771326634579,-500.0,0.00010779,2]
[405803562,1771326634589,-239.8459294,0.00010779,2]
[405803563,1771326634598,-501.16029055,0.00010779,2]
[405803564,1771326634608,-500.86147052,0.00010779,2]
[405803565,1771326634617,-500.0,0.00010779,2]
[405803566,1771326634627,-500.0,0.00010779,2]
[405803567,1771326634636,-500.0,0.00010779,2]
[405803568,1771326634646,-503.06752739,0.00010779,2]
[405803569,1771326634655,-502.12798245,0.00010779,2]
[405803570,1771326634666,-500.0,0.00010959,2]
[405803571,1771326634676,-192.01,0.00010959,2]
[405803572,1771326634686,-530.37033561,0.00010999,2]
[405803573,1771326634695,-500.0,0.00011096,2]
[405803574,1771326634705,-27737.69540561,0.00011099,2]
[405803575,1771326634715,-27737.69540553,0.00011099,2]
[405803576,1771326634724,-27737.69540553,0.00011099,2]
[405803577,1771326634734,-27737.69540553,0.00011099,2]
[405803578,1771326634743,-8685.08379471,0.00011099,2]
[405803579,1771326634752,-8685.08379471,0.00011099,2]
[405803580,1771326634762,-8685.08379471,0.00011099,2]
[405803581,1771326634771,-8685.08379471,0.00011099,2]
[405803582,1771326634780,-5566.62190857,0.00011099,2]
[405803583,1771326634795,-3118.46188614,0.00011099,2]
[405803584,1771326634804,-1252.0,0.0001112,2]
[405803585,1771326634814,-4609.0,0.00011121,2]
[405803586,1771326634824,-500.0,0.0001118,2]
[405803587,1771326634832,-500.0,0.0001118,2]
[405803588,1771326634842,-500.0,0.0001118,2]
[405803589,1771326634851,-150.0,0.0001118,2]
[405803590,1771326634860,-500.0,0.0001118,2]
[405803591,1771326634870,-500.0,0.0001118,2]
[405803592,1771326634880,-150.0,0.0001118,2]
[405803593,1771326634889,-500.0,0.0001118,2]
[405803594,1771326634899,-150.31509327,0.0001118,2]
[405803595,1771326634909,-500.0,0.0001118,2]
[405803596,1771326634918,-500.0,0.0001118,2]
[405803597,1771326634927,-596.0,0.0001118,2]
[405803598,1771326634939,-150.0,0.0001118,2]
[405803599,1771326634949,-500.0,0.0001118,2]
[405803600,1771326634958,-500.0,0.0001118,2]
[405803601,1771326634968,-500.0,0.0001118,2]
[405803602,1771326634979,-237.28842339,0.0001118,2]
[405803603,1771326634988,-500.0,0.0001118,2]
[405803604,1771326634998,-500.0,0.0001118,2]
[405803605,1771326635008,-500.0,0.0001118,2]
[405803606,1771326635018,-500.0,0.0001118,2]
[405803607,1771326635028,-150.0,0.0001118,2]
[405803608,1771326635037,-500.0,0.0001118,2]
[405803609,1771326635047,-500.0,0.0001118,2]
[405803610,1771326635056,-500.0,0.0001118,2]
[405803611,1771326635066,-466.0,0.0001118,2]
[405803612,1771326635076,-150.0,0.0001118,2]
[405803613,1771326635085,-150.0,0.0001118,2]
[405803614,1771326635095,-500.0,0.0001118,2]
[405803615,1771326635105,-150.0,0.0001118,2]
[405803616,1771326635115,-214.0121963,0.0001118,2]
[405803617,1771326635124,-150.0,0.0001118,2]
[405803618,1771326635133,-500.0,0.0001118,2]
[405803619,1771326635143,-500.0,0.0001118,2]
[405803620,1771326635152,-500.0,0.0001118,2]
[405803621,1771326635162,-763.0,0.0001118,2]
[405803622,1771326635171,-8714.94,0.00011233,2]
[405803623,1771326635181,-500.0,0.00011233,2]
[405803624,1771326635191,-500.0,0.00011235,2]
[405803625,1771326635201,-500.0,0.00011235,2]
[405803626,1771326635211,-500.0,0.00011235,2]
[405803627,1771326635221,-150.0,0.00011235,2]
[405803628,1771326635231,-500.0,0.00011235,2]
[405803629,1771326635240,-500.0,0.00011235,2]
[405803630,1771326635250,-150.0,0.00011235,2]
[405803631,1771326635259,-500.0,0.00011235,2]
[405803632,1771326635269,-500.0,0.00011235,2]
[405803633,1771326635281,-500.0,0.00011235,2]
[405803634,1771326635291,-596.0,0.00011235,2]
[405803635,1771326635300,-150.0,0.00011235,2]
[405803636,1771326635310,-500.0,0.00011235,2]
[405803637,1771326635320,-502.16866536,0.00011235,2]
[405803638,1771326635330,-500.0,0.00011235,2]
[405803639,1771326635340,-500.0,0.00011235,2]
[405803640,1771326635349,-500.87477363,0.00011235,2]
[405803641,1771326635359,-500.0,0.00011235,2]
[405803642,1771326635369,-500.0,0.00011235,2]
[405803643,1771326635379,-150.07216309,0.00011235,2]
[405803644,1771326635389,-500.0,0.00011235,2]
[405803645,1771326635399,-500.0,0.00011235,2]
[405803646,1771326635410,-500.0,0.00011235,2]
[405803647,1771326635420,-466.0,0.00011235,2]
[405803648,1771326635430,-500.0,0.00011235,2]
[405803649,1771326635439,-151.2254874,0.00011235,2]
[405803650,1771326635449,-500.0,0.00011235,2]
[405803651,1771326635459,-500.0,0.00011235,2]
[405803652,1771326635469,-500.0,0.00011235,2]
[405803653,1771326635479,-763.0,0.00011235,2]
[405803654,1771326635488,-500.0,0.0001129,2]
[405803655,1771326635498,-500.0,0.0001129,2]
[405803656,1771326635507,-500.0,0.0001129,2]
[405803657,1771326635517,-200.0,0.0001129,2]
[405803658,1771326635531,-500.0,0.0001129,2]
[405803659,1771326635540,-500.0,0.0001129,2]
[405803660,1771326635550,-242.84628954,0.0001129,2]
[405803661,1771326635559,-500.0,0.0001129,2]
[405803662,1771326635568,-500.0,0.0001129,2]
[405803663,1771326635578,-616.5683879,0.0001129,2]
[405803664,1771326635588,-596.0,0.0001129,2]
[405803665,1771326635597,-201.09695119,0.0001129,2]
[405803666,1771326635607,-500.0,0.0001129,2]
[405803667,1771326635616,-220.15883999,0.0001129,2]
[405803668,1771326635626,-500.0,0.0001129,2]
[405803669,1771326635635,-500.0,0.0001129,2]
[405803670,1771326635645,-500.0,0.0001129,2]
[405803671,1771326635655,-537.18600864,0.0001129,2]
[405803672,1771326635664,-500.0,0.0001129,2]
[405803673,1771326635673,-500.0,0.0001129,2]
[405803674,1771326635683,-466.0,0.0001129,2]
[405803675,1771326635693,-500.0,0.0001129,2]
[405803676,1771326635702,-500.0,0.0001129,2]
[405803677,1771326635712,-500.0,0.0001129,2]
[405803678,1771326635721,-500.0,0.0001129,2]
[405803679,1771326635730,-763.0,0.0001129,2]
[405803680,1771326635740,-1000.0,0.00011301,2]
[405803681,1771326635750,-500.97291215,0.00011327,2]
[405803682,1771326635759,-1000.0,0.00011327,2]
[405803683,1771326635769,-1000.0,0.00011327,2]
[405803684,1771326635779,-502.71949542,0.00011327,2]
[405803685,1771326635788,-643.23767655,0.00011327,2]
[405803686,1771326635798,-1000.0,0.00011327,2]
[405803687,1771326635808,-1000.0,0.00011327,2]
[405803688,1771326635818,-500.0,0.00011344,2]
[405803689,1771326635828,-187.36614029,0.00011344,2]
[405803690,1771326635837,-500.0,0.00011344,2]
[405803691,1771326635847,-500.0,0.00011344,2]
[405803692,1771326635857,-500.0,0.00011344,2]
[405803693,1771326635867,-500.0,0.00011344,2]
[405803694,1771326635877,-500.0,0.00011344,2]
[405803695,1771326635886,-596.0,0.00011344,2]
[405803696,1771326635896,-500.0,0.00011344,2]
[405803697,1771326635906,-500.0,0.00011344,2]
[405803698,1771326635916,-500.0,0.00011344,2]
[405803699,1771326635925,-510.76125773,0.00011344,2]
[405803700,1771326635937,-500.0,0.00011344,2]
[405803701,1771326635948,-500.0,0.00011344,2]
[405803702,1771326635958,-466.0,0.00011344,2]
[405803703,1771326635968,-500.0,0.00011344,2]
[405803704,1771326635978,-178.36591542,0.00011344,2]
[405803705,1771326635988,-500.0,0.00011344,2]
[405803706,1771326635997,-500.0,0.00011344,2]
[405803707,1771326636006,-763.0,0.00011344,2]
[405803708,1771326636018,-500.0,0.00011399,2]
[405803709,1771326636028,-500.0,0.00011399,2]
[405803710,1771326636038,-500.0,0.00011399,2]
[405803711,1771326636047,-500.0,0.00011399,2]
[405803712,1771326636057,-500.0,0.00011399,2]
[405803713,1771326636067,-500.0,0.00011399,2]
[405803714,1771326636076,-596.0,0.00011399,2]
[405803715,1771326636086,-500.0,0.00011399,2]
[405803716,1771326636095,-500.0,0.00011399,2]
[405803717,1771326636104,-500.0,0.00011399,2]
[405803718,1771326636114,-500.0,0.00011399,2]
[405803719,1771326636123,-500.0,0.00011399,2]
[405803720,1771326636134,-466.0,0.00011399,2]
[405803721,1771326636143,-500.0,0.00011399,2]
[405803722,1771326636153,-500.0,0.00011399,2]
[405803723,1771326636162,-500.0,0.00011399,2]
[405803724,1771326636172,-763.0,0.00011399,2]
[405803725,1771326636182,-1974.032394,0.000114,2]
[405803726,1771326636192,-6316.23161076,0.000114,2]
[405803727,1771326636205,-76041.76838924,0.000114,2]
[405803728,1771326636215,-952.505139,0.00011412,2]
[405803729,1771326636225,-192.01,0.00011416,2]
[405803730,1771326636235,-500.0,0.00011454,2]
[405803731,1771326636245,-500.0,0.00011454,2]
[405803732,1771326636255,-500.0,0.00011454,2]
[405803733,1771326636264,-500.0,0.00011454,2]
[405803734,1771326636276,-500.0,0.00011454,2]
[405803735,1771326636286,-500.0,0.00011454,2]
[405803736,1771326636295,-596.0,0.00011454,2]
[405803737,1771326636305,-500.33776257,0.00011454,2]
[405803738,1771326636315,-500.0,0.00011454,2]
[405803739,1771326636324,-500.0,0.00011454,2]
[405803740,1771326636334,-500.0,0.00011454,2]
[405803741,1771326636344,-500.0,0.00011454,2]
[405803742,1771326636354,-466.0,0.00011454,2]
[405803743,1771326636364,-500.0,0.00011454,2]
[405803744,1771326636373,-500.0,0.00011454,2]
[405803745,1771326636383,-500.0,0.00011454,2]
[405803746,1771326636393,-763.0,0.00011454,2]
[405803747,1771326636402,-500.0,0.00011507,2]
[405803748,1771326636412,-500.0,0.00011509,2]
[405803749,1771326636422,-500.0,0.00011509,2]
[405803750,1771326636432,-464.38268717,0.00011509,2]
[405803751,1771326636442,-500.0,0.00011509,2]
[405803752,1771326636451,-500.0,0.00011509,2]
[405803753,1771326636460,-500.0,0.00011509,2]
[405803754,1771326636470,-596.0,0.00011509,2]
[405803755,1771326636480,-500.0,0.00011509,2]
[405803756,1771326636489,-500.0,0.00011509,2]
[405803757,1771326636498,-500.0,0.00011509,2]
[405803758,1771326636508,-621.12228144,0.00011509,2]
[405803759,1771326636517,-466.0,0.00011509,2]
[405803760,1771326636529,-500.0,0.00011509,2]
[405803761,1771326636539,-500.0,0.00011509,2]
[405803762,1771326636549,-475.49905426,0.00011509,2]
[405803763,1771326636559,-763.0,0.00011509,2]
[405803764,1771326636569,-393.22051508,0.00011518,2]
[405803765,1771326636579,-500.0,0.00011564,2]
[405803766,1771326636588,-500.0,0.00011564,2]
[405803767,1771326636598,-500.0,0.00011564,2]
[405803768,1771326636607,-500.0,0.00011564,2]
[405803769,1771326636616,-500.0,0.00011564,2]
[405803770,1771326636626,-596.0,0.00011564,2]
[405803771,1771326636635,-500.0,0.00011564,2]
[405803772,1771326636645,-500.0,0.00011564,2]
[405803773,1771326636655,-500.0,0.00011564,2]
[405803774,1771326636665,-466.0,0.00011564,2]
[405803775,1771326636675,-500.0,0.00011564,2]
[405803776,1771326636686,-500.0,0.00011564,2]
[405803777,1771326636696,-763.0,0.00011564,2]
[405803778,1771326636706,-500.0,0.00011618,2]
[405803779,1771326636715,-500.0,0.00011618,2]
[405803780,1771326636725,-500.0,0.00011618,2]
[405803781,1771326636735,-500.0,0.00011618,2]
[405803782,1771326636745,-500.0,0.00011618,2]
[405803783,1771326636754,-596.0,0.00011618,2]
[405803784,1771326636764,-500.0,0.00011618,2]
[405803785,1771326636778,-500.0,0.00011618,2]
[405803786,1771326636787,-500.0,0.00011618,2]
[405803787,1771326636797,-466.0,0.00011618,2]
[405803788,1771326636806,-500.0,0.00011618,2]
[405803789,1771326636816,-500.0,0.00011618,2]
[405803790,1771326636826,-763.0,0.00011618,2]
[405803791,1771326636836,-11944.558401,0.00011624,2]
[405803792,1771326636846,-500.0,0.00011644,2]
[405803793,1771326636856,-431.078546,0.00011653,2]
[405803794,1771326636867,-155.81655615,0.00011673,2]
[405803795,1771326637082,-500.0,0.00011673,2]
[405803796,1771326637124,-500.0,0.00011673,2]
[405803797,1771326637134,-500.0,0.00011673,2]
[405803798,1771326637144,-500.0,0.00011673,2]
[405803799,1771326637154,-596.0,0.00011673,2]
[405803800,1771326637164,-500.0,0.00011673,2]
[405803801,1771326637174,-500.0,0.00011673,2]
[405803802,1771326637184,-500.0,0.00011673,2]
[405803803,1771326637194,-466.0,0.00011673,2]
[405803804,1771326637204,-500.0,0.00011673,2]
[405803805,1771326637213,-500.0,0.00011673,2]
[405803806,1771326637223,-763.0,0.00011673,2]
[405803807,1771326637233,-500.0,0.00011728,2]
[405803808,1771326637242,-500.0,0.00011728,2]
[405803809,1771326637252,-500.0,0.00011728,2]
[405803810,1771326637262,-500.0,0.00011728,2]
[405803811,1771326637271,-596.0,0.00011728,2]
[405803812,1771326637284,-500.0,0.00011728,2]
[405803813,1771326637294,-500.0,0.00011728,2]
[405803814,1771326637304,-500.0,0.00011728,2]
[405803815,1771326637314,-466.0,0.00011728,2]
[405803816,1771326637324,-500.0,0.00011728,2]
[405803817,1771326637334,-500.0,0.00011728,2]
[405803818,1771326637344,-763.0,0.00011728,2]
[405803819,1771326637354,-500.0,0.00011781,2]
[405803820,1771326637364,-163.51122534,0.00011783,2]
[405803821,1771326637374,-500.0,0.00011783,2]
[405803822,1771326637384,-361.9355564,0.00011783,2]
[405803823,1771326637394,-500.0,0.00011783,2]
[405803824,1771326637404,-596.0,0.00011783,2]
[405803825,1771326637414,-500.0,0.00011783,2]
[405803826,1771326637424,-500.0,0.00011783,2]
[405803827,1771326637435,-500.0,0.00011783,2]
[405803828,1771326637445,-466.0,0.00011783,2]
[405803829,1771326637454,-500.0,0.00011783,2]
[405803830,1771326637464,-512.26030593,0.00011783,2]
[405803831,1771326637474,-763.0,0.00011783,2]
[405803832,1771326637483,-5530.0,0.000118,3]
[405803833,1771326637493,-933.51,0.00011824,2]
[405803834,1771326637503,-500.0,0.00011838,2]
[405803835,1771326637513,-500.0,0.00011838,2]
[405803836,1771326637524,-596.0,0.00011838,2]
[405803837,1771326637534,-224.65460803,0.00011838,2]
[405803838,1771326637544,-500.0,0.00011838,2]
[405803839,1771326637556,-500.0,0.00011838,2]
[405803840,1771326637566,-466.0,0.00011838,2]
[405803841,1771326637575,-500.0,0.00011838,2]
[405803842,1771326637585,-763.0,0.00011838,2]
[405803843,1771326637595,-192.01,0.00011872,2]
[405803844,1771326637605,-1500.0,0.00011875,2]
[405803845,1771326637615,-1500.0,0.00011875,2]
[405803846,1771326637624,-1500.0,0.00011875,2]
[405803847,1771326637634,-1500.0,0.00011875,2]
[405803848,1771326637643,-500.0,0.00011892,2]
[405803849,1771326637654,-498.26652801,0.00011892,2]
[405803850,1771326637663,-596.0,0.00011892,2]
[405803851,1771326637673,-500.0,0.00011892,2]
[405803852,1771326637683,-292.49812506,0.00011892,2]
[405803853,1771326637693,-466.0,0.00011892,2]
[405803854,1771326637703,-500.0,0.00011892,2]
[405803855,1771326637713,-763.0,0.00011892,2]
[405803856,1771326637723,-8685.08379471,0.00011922,2]
[405803857,1771326637732,-611.76249723,0.00011947,2]
[405803858,1771326637742,-596.0,0.00011947,2]
[405803859,1771326637752,-500.0,0.00011947,2]
[405803860,1771326637761,-466.0,0.00011947,2]
[405803861,1771326637771,-500.0,0.00011947,2]
[405803862,1771326637782,-763.0,0.00011947,2]
[405803863,1771326637791,-596.0,0.00012002,2]
[405803864,1771326637800,-500.0,0.00012002,2]
[405803865,1771326637812,-466.0,0.00012002,2]
[405803866,1771326637822,-500.0,0.00012002,2]
[405803867,1771326637831,-763.0,0.00012002,2]
[405803868,1771326637841,-30336.8,0.00012055,2]
[405803869,1771326637850,-500.0,0.00012055,2]
[405803870,1771326637860,-596.0,0.00012057,2]
[405803871,1771326637870,-266.33885806,0.00012057,2]
[405803872,1771326637880,-466.0,0.00012057,2]
[405803873,1771326637890,-500.0,0.00012057,2]
[405803874,1771326637900,-652.34772306,0.00012057,2]
[405803903,1771326638461,-110.65227694,0.00012057,2]
[405803905,1771326638472,-5530.0,0.000121,5]
[405803907,1771326638482,-596.0,0.00012112,2]
[405803909,1771326638493,-466.0,0.00012112,2]
[405803911,1771326638503,-500.0,0.00012112,2]
[405803913,1771326638513,-763.0,0.00012112,2]
[405803915,1771326638525,-596.0,0.00012166,2]
[405803917,1771326638537,-466.0,0.00012166,2]
[405803919,1771326638547,-481.0942881,0.00012166,2]
[405803921,1771326638556,-763.0,0.00012166,2]
[405803923,1771326638566,-27737.69540553,0.00012177,2]
[405803925,1771326638575,-500.0,0.00012192,2]
[405803927,1771326638585,-596.0,0.00012221,2]
[405803929,1771326638594,-466.0,0.00012221,2]
[405803931,1771326638604,-763.0,0.00012221,2]
[405803933,1771326638614,-6453.0,0.00012233,2]
[405803935,1771326638624,-1889.0,0.00012237,2]
[405803937,1771326638633,-596.0,0.00012276,2]
[405803939,1771326638642,-466.0,0.00012276,2]
[405803941,1771326638652,-763.0,0.00012276,2]
[405803943,1771326638663,-530.37033559,0.00012299,2]
[405803945,1771326638674,-998.6278394,0.00012321,2]
[405803947,1771326638683,-500.0,0.00012329,2]
[405803949,1771326638692,-1000.0,0.00012329,2]
[405803951,1771326638702,-192.01,0.00012329,2]
[405803953,1771326638711,-596.0,0.00012331,2]
[405803955,1771326638720,-466.0,0.00012331,2]
[405803957,1771326638730,-763.0,0.00012331,2]
[405803959,1771326638739,-596.0,0.00012385,2]
[405803961,1771326638749,-466.0,0.00012385,2]
[405803963,1771326638758,-763.0,0.00012385,2]
[405803965,1771326638767,-1799.80965345,0.00012423,2]
[405803967,1771326638776,-2000.0,0.00012423,2]
[405803969,1771326638785,-2000.0,0.00012423,2]
[405803971,1771326638795,-368.72151799,0.00012423,2]
[405803973,1771326638805,-600.2655769,0.0001244,2]
[405803975,1771326638813,-468.80031656,0.0001244,2]
[405803977,1771326638822,-763.0,0.0001244,2]
[405803979,1771326638831,-500.0,0.00012603,2]
[405803981,1771326638840,-150.0,0.00012718,2]
[405803983,1771326638850,-500.0,0.0001274,2]
[405803985,1771326638859,-8685.08379471,0.00012806,2]
[405803987,1771326638868,-500.0,0.00012877,2]
[405803989,1771326638878,-265.56589159,0.00012948,2]
[405803991,1771326638888,-502.39964348,0.00012971,2]
[405803993,1771326638897,-2500.0,0.00012971,2]
[405803995,1771326638907,-393.22051508,0.00013114,2]
[405803997,1771326638917,-391.49,0.00013122,2]
[405803999,1771326638926,-160.0,0.00013132,2]
[405804001,1771326638939,-173.57638878,0.00013132,2]
[405804003,1771326638949,-500.0,0.00013151,2]
[405804006,1771326638959,-503.55960548,0.00013288,2]
[405804008,1771326638968,-27737.69540553,0.00013321,2]
[405804010,1771326638978,-3240.0,0.00013425,2]
[405804012,1771326638989,-500.0,0.00013425,2]
[405804014,1771326638998,-9035.0,0.00013456,2]
[405804015,1771326639008,-3000.0,0.00013519,2]
[405804018,1771326639019,-150.0,0.00013537,2]
[405804020,1771326639029,-1576.69293966,0.00013598,2]
[405804022,1771326639039,-530.37033559,0.00013598,2]
[405804024,1771326639048,-1000.0,0.00013632,2]
[405804026,1771326639058,-8685.08379471,0.00013691,2]
[405804028,1771326639068,-1276.28087809,0.00013698,2]
[405804029,1771326639077,-500.0,0.00013698,2]
[405804032,1771326639086,-500.0,0.00013698,2]
[405804033,1771326639096,-500.0,0.00013698,2]
[405804035,1771326639109,-522.2154278,0.00013698,2]
[405804037,1771326639118,-503.77565291,0.00013698,2]
[405804040,1771326639129,-500.0,0.00013698,2]
[405804042,1771326639140,-500.0,0.00013698,2]
[405804043,1771326639149,-500.0,0.00013698,2]
[405804046,1771326639159,-551.5931465,0.00013698,2]
[405804047,1771326639168,-500.0,0.00013698,2]
[405804050,1771326639178,-500.0,0.00013698,2]
[405804052,1771326639187,-500.0,0.00013698,2]
[405804053,1771326639196,-500.0,0.00013698,2]
[405804056,1771326639206,-500.0,0.00013698,2]
[405804058,1771326639215,-500.0,0.00013698,2]
[405804060,1771326639225,-500.0,0.00013698,2]
[405804070,1771326639318,-500.0,0.00013698,2]
[405804072,1771326639328,-500.0,0.00013698,2]
[405804074,1771326639337,-500.0,0.00013698,2]
[405804076,1771326639346,-391.46615766,0.00013698,2]
[405804078,1771326639356,-500.0,0.00013698,2]
[405804080,1771326639365,-500.0,0.00013698,2]
[405804082,1771326639374,-500.0,0.00013698,2]
[405804084,1771326639383,-500.0,0.00013698,2]
[405804086,1771326639392,-500.0,0.00013698,2]
[405804088,1771326639402,-500.0,0.00013698,2]
[405804090,1771326639411,-500.0,0.00013698,2]
[405804092,1771326639420,-500.0,0.00013698,2]
[405804094,1771326639430,-500.0,0.00013698,2]
[405804096,1771326639439,-500.0,0.00013698,2]
[405804098,1771326639447,-500.0,0.00013698,2]
[405804100,1771326639457,-500.0,0.00013698,2]
[405804102,1771326639466,-500.0,0.00013698,2]
[405804104,1771326639475,-500.0,0.00013698,2]
[405804106,1771326639484,-500.0,0.00013698,2]
[405804108,1771326639494,-500.0,0.00013698,2]
[405804109,1771326639503,-500.0,0.00013698,2]
[405804110,1771326639512,-500.0,0.00013698,2]
[405804111,1771326639521,-505.24249427,0.00013698,2]
[405804112,1771326639532,-734.64,0.00013698,2]
[405804113,1771326639542,-734.64,0.00013698,2]
[405804114,1771326639551,-734.64,0.00013698,2]
[405804115,1771326639560,-734.64,0.00013698,2]
[405804116,1771326639570,-734.64,0.00013698,2]
[405804117,1771326639579,-734.64,0.00013698,2]
[405804118,1771326639589,-734.64,0.00013698,2]
[405804119,1771326639598,-734.64,0.00013698,2]
[405804120,1771326639607,-734.64,0.00013698,2]
[405804121,1771326639616,-734.64,0.00013698,2]
[405804122,1771326639627,-734.64,0.00013698,2]
[405804123,1771326639636,-734.64,0.00013698,2]
[405804124,1771326639645,-734.64,0.00013698,2]
[405804125,1771326639655,-734.64,0.00013698,2]
[405804126,1771326639665,-734.64,0.00013698,2]
[405804127,1771326639674,-734.64,0.00013698,2]
[405804128,1771326639684,-734.64,0.00013698,2]
[405804129,1771326639693,-734.64,0.00013698,2]
[405804130,1771326639702,-734.64,0.00013698,2]
[405804131,1771326639711,-535.55684817,0.00013698,2]
[405804132,1771326639720,-500.0,0.00013698,2]
[405804133,1771326639729,-500.0,0.00013698,2]
[405804134,1771326639738,-500.0,0.00013698,2]
[405804135,1771326639747,-639.90682726,0.00013698,2]
[405804136,1771326639756,-349.69131006,0.00013698,2]
[405804137,1771326639764,-1310.85,0.00013698,2]
[405804138,1771326639774,-1310.85,0.00013698,2]
[405804139,1771326639783,-1310.85,0.00013698,2]
[405804140,1771326639791,-1310.85,0.00013698,2]
[405804141,1771326639800,-1310.85,0.00013698,2]
[405804142,1771326639809,-1310.85,0.00013698,2]
[405804143,1771326639817,-1310.85,0.00013698,2]
[405804144,1771326639826,-1310.85,0.00013698,2]
[405804145,1771326639835,-1310.85,0.00013698,2]
[405804146,1771326639844,-1310.85,0.00013698,2]
[405804147,1771326639852,-1310.85,0.00013698,2]
[405804148,1771326639862,-1310.85,0.00013698,2]
[405804149,1771326639870,-1310.85,0.00013698,2]
[405804150,1771326639879,-1310.85,0.00013698,2]